[Event "FIDE WTC-KO 202"]
[Site "Jerusalem"]
[Date "2022.11.24"]
[Round "5.1"]
[White "Vidit, Santosh Gujrathi"]
[Black "Yakubboev, Nodirbek"]
[Result "0-1"]
[ECO "D02"]
[WhiteElo "2662"]
[BlackElo "2563"]
[Annotator "TA"]
[PlyCount "87"]
[EventDate "2022.11.20"]
[EventType "team-tourn"]
[EventCountry "ISR"]
[SourceTitle "playchess.com"]
[Source "ChessBase"]
[SourceQuality "1"]
[TimeControl "2700+10"]

{[%evp 17,87,16,25,22,19,26,29,7,10,9,32,0,15,9,18,0,29,32,35,33,34,0,0,0,0,0,0,0,0,0,-2,-8,0,-13,-8,-12,-16,-68,-35,-23,-29,-45,-50,-45,-59,-83,-77,-77,-75,-67,-38,-33,-37,-78,-87,-101,-98,-163,-120,-262,-244,-291,-276,-355,-355,-390,-166,-309,-283,-29971,-29972,-29996]} 1. d4 {[%emt 0:00:27]} Nf6 {[%emt 0:00:02]} 2. Nf3 {[%emt 0:00:18]} d5 {[%emt 0:00:43]} 3. Bf4 {[%emt 0:01:30]} c5 {[%emt 0:01:24]} 4. e3 {[%emt 0:00:03]} Nc6 {[%emt 0:00:47]} 5. Nbd2 {[%emt 0:00:05]} e6 {[%emt 0:04:39]} 6. c3 {[%emt 0:00:14]} Bd6 {[%emt 0:00:06]} 7. Bg3 {[%emt 0:00:25]} O-O {[%emt 0:00:24]} 8. Bd3 {[%emt 0:00:11]} Qe7 {[%emt 0:00:04]} 9. Ne5 {[%emt 0:00:53]} Nd7 {[%emt 0:38:31]} 10. Nxd7 {[%emt 0:04:35] D02: 1 d4 d5 2 Nf3 sidelines, including 2...Nf6 3 g3 and 2...Nf6 3 Bf4.} ({Much worse is} 10. Qh5 g6 11. Nxc6 bxc6 $11) 10... Qxd7 {[%emt 0:00:00]} 11. O-O {[%emt 0:01:15]} b6 {[%emt 0:00:00]} 12. Bxd6 {[%emt 0:05:51] White has an edge.} (12. Qh5 {is interesting.} g6 13. Qh3 a5 14. Rad1) 12... Qxd6 {[%emt 0:00:00]} 13. f4 {[%emt 0:00:05] [#]} Bd7 $146 {[%emt 0:00:00]} ({Predecessor:} 13... f5 14. Nf3 c4 15. Bc2 b5 16. a3 a5 17. g4 Bd7 18. Ne5 Nxe5 19. fxe5 Qe7 20. gxf5 exf5 {½-½ (69) Grischuk,A (2781)-Hammer,J (2677) Stavanger 2015}) 14. a3 {[%emt 0:00:42]} a5 {[%emt 0:00:00]} 15. Qh5 {[%emt 0:05:13][%csl Gd3][%cal Rh5h7] [#]} f5 {[%emt 0:00:00]} 16. g4 {[%emt 0:01:50]} g6 {[%emt 0:00:00]} 17. Qh4 {[%emt 0:02:33]} fxg4 {[%emt 0:00:00]} 18. Qxg4 {[%emt 0:00:33][%cal Od3g6]} cxd4 {[%emt 0:00:00]} 19. exd4 {[%emt 0:06:48][%cal Od3g6]} Rf6 {[%emt 0:00:00]} 20. Rf2 {[%emt 0:00:03]} Raf8 {[%emt 0:00:00]} 21. Raf1 {[%emt 0:00:03]} Ne7 {[%emt 0:00:00]} 22. Qg5 {[%emt 0:00:14]} Nf5 {[%emt 0:00:00]} 23. Rf3 {[%emt 0:01:53]} Ng7 {[%emt 0:00:00]} 24. Qe5 {[%emt 0:00:45]} Qe7 {[%emt 0:00:00]} 25. Nb3 {[%emt 0:02:05]} Nf5 {[%emt 0:00:00]} 26. Nc1 {[%emt 0:00:30]} Nd6 {[%emt 0:00:00]} 27. Qg5 {[%emt 0:05:05]} (27. Ne2 $11) 27... Qf7 {[%emt 0:00:00]} 28. Qe5 {[%emt 0:00:26]} Nc4 {[%emt 0:00:00]} 29. Bxc4 {[%emt 0:00:11]} dxc4 {[%emt 0:00:00]} 30. Qc7 {[%emt 0:00:13][%csl LRb6,LRc4] Prevents Bc6.} Rc8 {[%emt 0:01:36]} 31. Qb7 {[%emt 0:00:48]} Qe8 {[%emt 0:00:43] aiming for ...Bc6.} 32. Qxb6 {[%emt 0:00:13]} Bc6 {[%emt 0:00:36] And now ...Rb8 would win.} 33. R3f2 {[%emt 0:00:38]} Rf5 {[%emt 0:00:12][%cal Bf6f5,Bf5d5,Bd5d3][%mdl 32]} 34. d5 $1 {[%emt 0:00:57]} Rxd5 {[%emt 0:00:10]} 35. Ne2 {[%emt 0:00:35]} Rb8 $36 {[%emt 0:00:02][%mdl 2048] Keeping White busy.} 36. Qe3 {[%emt 0:00:10]} Rd3 {[%emt 0:00:18] Prevents Nd4. Black is more active.} (36... Rxb2 {simplifies} 37. Nd4 Rxf2 38. Qxf2 Rh5) 37. Qc5 {[%emt 0:00:07]} (37. Qe5 $17) 37... Rxb2 {[%emt 0:00:39] ...Bd5 is the strong threat.} 38. Nd4 {[%emt 0:00:45] White does not recover from this.} (38. Qxc4 $17 Bb5 39. Qc5) 38... Rxf2 $19 {[%emt 0:00:10]} 39. Kxf2 {[%emt 0:00:32]} Bd5 {[%emt 0:00:12]} 40. Rb1 {[%emt 0:00:18]} Qd8 {[%emt 0:00:12] Prevents Qc7. ( -> ...Qh4+)} ({Stronger than} 40... Rxc3 41. Qc7 Qf7 42. Rb8+ Kg7 43. Qe5+ Kh6 44. Qg5+ Kg7 45. Qe5+ Kh6 46. Qg5+ Kg7 47. Qe5+ $11) 41. Ke2 {[%emt 0:00:44] Strongly threatening Qa7.} Kg7 {[%emt 0:00:08]} (41... Rxc3 $142 42. Qb6 Qh4 43. Qb8+ Kf7 44. Qc7+ Qe7) 42. Rb7+ {[%emt 0:00:34]} (42. Rd1 $142 Qh4 43. Rxd3 cxd3+ 44. Kxd3) 42... Kh6 $1 {[%emt 0:00:01] Chess con chili.} (42... Bxb7 $2 43. Nxe6+ (43. Qxc4 $2 {loses.} Rxd4 44. cxd4 Bd5 $19) 43... Kg8 44. Nxd8 Rxd8 45. Qe7 $18) 43. Re7 {[%emt 0:00:32] [#]} (43. Qe7 $19 Qxe7 44. Rxe7) 43... Qb8 {[%emt 0:00:18]} 44. Qc7 {[%emt 0:00:38] Weighted Error Value: White=0.40/Black=0.18 (very precise)} 0-1

[Event "FIDE WTC-KO 202"]
[Site "Jerusalem"]
[Date "2022.11.24"]
[Round "5.1"]
[White "Anton Guijarro, David"]
[Black "Xu, Xiangyu"]
[Result "1/2-1/2"]
[ECO "B22"]
[WhiteElo "2633"]
[BlackElo "2574"]
[Annotator "TA"]
[PlyCount "67"]
[EventDate "2022.11.20"]
[EventType "team-tourn"]
[EventCountry "ISR"]
[SourceTitle "playchess.com"]
[Source "ChessBase"]
[SourceQuality "1"]
[TimeControl "2700+10"]

{[%evp 12,67,31,0,10,3,0,-2,10,12,7,0,0,8,25,22,44,0,0,0,38,34,0,-40,-44,-40,-39,-48,-29,-74,-50,-49,-50,-70,-50,-55,-36,-36,-33,-36,-36,-39,-33,-34,-34,-52,-52,-52,-36,-36,-36,-35,-27,-28,-32,-35,-35,-35]} 1. e4 {[%emt 0:00:04]} c5 {[%emt 0:00:10]} 2. Nf3 {[%emt 0:00:06]} e6 {[%emt 0:00:53]} 3. c3 {[%emt 0:00:51]} Nf6 {[%emt 0:00:03]} 4. e5 {[%emt 0:00:04]} Nd5 {[%emt 0:00:03]} 5. d4 {[%emt 0:00:06]} cxd4 {[%emt 0:00:03]} 6. cxd4 {[%emt 0:00:03]} b6 {[%emt 0:00:03]} 7. Bd2 {[%emt 0:01:08]} Bb7 $1 {[%emt 0:00:09] 7...Bb7 is better than 7...Be7. B22: Sicilian: 2 c3.} 8. Bd3 {[%emt 0:02:19] [#]} d6 $146 {[%emt 0:00:20]} ({Predecessor:} 8... Be7 9. h4 Na6 10. Nc3 Nac7 11. Qe2 Nxc3 12. Bxc3 Nd5 13. Bd2 Rc8 14. a3 h6 15. g4 {0-1 (26) Szpar,M (2434)-Martin Duque,J (2424) Chess.com INT 2022}) 9. Nc3 {[%emt 0:00:25]} Nd7 {[%emt 0:03:03] The position is equal.} 10. Ne4 {[%emt 0:00:29]} dxe5 {[%emt 0:01:09]} 11. Nxe5 {[%emt 0:00:04]} Nxe5 {[%emt 0:04:30]} 12. dxe5 {[%emt 0:00:03]} Be7 {[%emt 0:00:07]} (12... Nb4 {with more complications.} 13. Bb5+ Bc6 14. Qe2 Qd5) 13. Qa4+ {[%emt 0:06:42]} Kf8 $1 {[%emt 0:00:10][%cal Od5f4]} 14. Rd1 {[%emt 0:02:31]} Qc7 {[%emt 0:03:52]} 15. f4 {[%emt 0:02:05]} g6 {[%emt 0:04:58]} 16. Rc1 {[%emt 0:08:16]} Qd8 {[%emt 0:00:07][%cal Od5e3]} 17. Nd6 {[%emt 0:05:43]} Bxd6 {[%emt 0:00:44]} 18. exd6 {[%emt 0:00:02]} Qxd6 {[%emt 0:00:37]} 19. Qd4 {[%emt 0:00:48]} f6 {[%emt 0:04:57]} 20. Be4 {[%emt 0:01:01]} Kg7 {[%emt 0:00:56]} 21. O-O {[%emt 0:01:25]} Rac8 {[%emt 0:00:34]} 22. a3 {[%emt 0:02:04]} Rxc1 {[%emt 0:01:38]} 23. Rxc1 {[%emt 0:00:03]} Rc8 {[%emt 0:00:53]} 24. Rxc8 {[%emt 0:00:36]} Bxc8 {[%emt 0:00:03]} 25. Kf2 {[%emt 0:04:04]} Kf7 {[%emt 0:00:29]} (25... Bb7 {simplifies} 26. Bxd5 Qxd5 27. Qxd5 Bxd5 28. Bc3 Kf7) 26. g3 {[%emt 0:00:58]} Qc5 {[%emt 0:00:58]} 27. Qxc5 {[%emt 0:00:20]} bxc5 {[%emt 0:00:03]} 28. Bxd5 {[%emt 0:01:31]} exd5 $15 {[%emt 0:00:02][%mdl 4096] Endgame KB-KB} 29. b4 {[%emt 0:00:01]} cxb4 {[%emt 0:00:04]} 30. Bxb4 {[%emt 0:00:04]} Bh3 {[%emt 0:00:35]} 31. Bc3 {[%emt 0:00:07]} a6 {[%emt 0:01:58]} 32. Ke3 {[%emt 0:00:02]} Ke6 {[%emt 0:00:11]} 33. Bd4 {[%emt 0:00:02]} h5 {[%emt 0:01:22]} 34. Bc3 {[%emt 0:00:03] Weighted Error Value: White=0.10 (very precise) /Black=0.09 (flawless)} 1/2-1/2

[Event "FIDE WTC-KO 202"]
[Site "Jerusalem"]
[Date "2022.11.24"]
[Round "5.1"]
[White "Lu, Shanglei"]
[Black "Santos Latasa, Jaime"]
[Result "1-0"]
[ECO "C02"]
[WhiteElo "2627"]
[BlackElo "2622"]
[Annotator "TA"]
[PlyCount "103"]
[EventDate "2022.11.20"]
[EventType "team-tourn"]
[EventCountry "ISR"]
[SourceTitle "playchess.com"]
[Source "ChessBase"]
[SourceQuality "1"]
[TimeControl "2700+10"]

{[%evp 21,103,26,18,18,12,2,7,8,19,0,0,0,4,5,37,54,45,51,43,39,45,12,23,22,25,19,22,19,39,36,42,36,171,171,171,167,156,171,224,224,232,224,278,221,481,481,479,465,482,485,470,463,457,458,447,416,567,545,664,655,1036,1010,2016,1848,29981,29982,29982,29983,29983,29984,29984,29985,29985,29985,29985,29986,29986,29987,29991,29992,29993,29992,29993,29994]} 1. e4 {[%emt 0:00:03]} e6 {[%emt 0:00:01]} 2. d4 {[%emt 0:00:28]} d5 {[%emt 0:00:01]} 3. e5 {[%emt 0:01:17]} c5 {[%emt 0:00:01]} 4. c3 {[%emt 0:00:01]} Nc6 {[%emt 0:00:02]} 5. Nf3 {[%emt 0:00:02]} Qb6 {[%emt 0:00:01]} 6. a3 {[%emt 0:00:01]} Nh6 {[%emt 0:00:01]} 7. Bd3 {[%emt 0:00:05]} cxd4 {[%emt 0:00:02]} 8. cxd4 {[%emt 0:00:02]} Bd7 {[%emt 0:00:02]} 9. Bc2 {[%emt 0:00:01]} Nf5 {[%emt 0:00:01]} 10. Bxf5 {[%emt 0:00:01]} exf5 {[%emt 0:00:01]} 11. Nc3 {[%emt 0:00:02]} Be6 {[%emt 0:00:01]} 12. b4 {[%emt 0:00:01] C02: French: Advance Variation.} h6 {[%emt 0:00:04]} 13. h4 {[%emt 0:01:43]} Be7 {[%emt 0:00:12]} 14. Qd3 {[%emt 0:00:02] [#] The position is equal.} a6 $146 {[%emt 0:00:27]} ({Predecessor:} 14... O-O 15. Bd2 Rfc8 16. Ne2 a6 17. O-O Na7 18. g3 Rc4 19. Qe3 Nb5 20. Rfb1 Bd7 21. Be1 Qd8 {1-0 (77) Crielesi,G (2326)-Jung,R (2309) ICCF email 2018}) 15. Be3 {[%emt 0:01:44]} O-O {[%emt 0:00:21]} 16. O-O {[%emt 0:00:24]} Rac8 {[%emt 0:00:06]} 17. Rfc1 {[%emt 0:02:26]} Qd8 {[%emt 0:01:21]} 18. Na4 {[%emt 0:05:59]} Rc7 {[%emt 0:05:07]} 19. Nc5 {[%emt 0:01:52]} Qc8 {[%emt 0:01:52]} 20. Bd2 {[%emt 0:03:20]} Nb8 {[%emt 0:04:04][%cal Bc6b8,Bb8d7,Bd7b6,Bb6c4][%mdl 32]} 21. Na4 {[%emt 0:06:07]} Nd7 {[%emt 0:04:06]} 22. Rxc7 {[%emt 0:00:18]} Qxc7 {[%emt 0:00:13]} 23. Rc1 {[%emt 0:00:02]} Qb8 {[%emt 0:00:25]} 24. Qc3 {[%emt 0:01:31]} Bd8 {[%emt 0:03:41]} 25. Nc5 {[%emt 0:03:08]} Nb6 {[%emt 0:00:24]} 26. Bf4 {[%emt 0:00:01]} Be7 {[%emt 0:00:41] [#] This move loses the game for Black.} ({Black should try} 26... Kh7 $14) 27. Nxe6 $1 $18 {[%emt 0:03:14]} fxe6 {[%emt 0:00:02]} 28. Qc7 {[%emt 0:00:02]} Qxc7 {[%emt 0:01:19]} 29. Rxc7 {[%emt 0:00:05]} Bd8 {[%emt 0:02:20]} (29... Kf7 $142) 30. Rxb7 {[%emt 0:00:02] And now Ra7 would win.} Nc4 {[%emt 0:00:01]} 31. a4 {[%emt 0:03:41]} a5 {[%emt 0:00:02]} 32. Bd2 {[%emt 0:00:10]} Rf7 $2 {[%emt 0:01:57]} (32... Re8 {might work better.} 33. b5 Kf8) 33. Rb8 {[%emt 0:00:36][%csl LRa5,LRd8]} Rf8 {[%emt 0:00:01]} 34. h5 {[%emt 0:01:26]} Bb6 {[%emt 0:00:42]} 35. Rxf8+ {[%emt 0:00:03]} Kxf8 {[%emt 0:00:02]} 36. bxa5 {[%emt 0:00:02]} Bxa5 {[%emt 0:00:36]} 37. Bxa5 {[%emt 0:00:03]} Nxa5 {[%emt 0:00:01][%mdl 4096] Endgame KN-KN} 38. Kf1 {[%emt 0:00:28]} Ke7 {[%emt 0:00:06]} 39. Ke2 {[%emt 0:00:04]} Nc4 {[%emt 0:00:08]} 40. Nd2 {[%emt 0:00:57] [#] Threatens to win with Nxc4.} Nb2 {[%emt 0:00:30]} 41. a5 {[%emt 0:00:01][%cal Ba4a5,Ba5a6][%mdl 32]} Kd7 {[%emt 0:00:00]} 42. Nb3 {[%emt 0:00:03]} Na4 {[%emt 0:00:02]} 43. Nc5+ {[%emt 0:00:10] White mates.} Nxc5 {[%emt 0:00:04]} 44. dxc5 {[%emt 0:00:01] KP-KP} Kc6 {[%emt 0:00:14]} 45. a6 {[%emt 0:00:02]} Kc7 {[%emt 0:00:09]} 46. Kd3 {[%emt 0:00:01]} Kc6 {[%emt 0:00:04]} 47. Kd4 {[%emt 0:00:06]} Kc7 {[%emt 0:00:05]} 48. Kc3 {[%emt 0:00:02]} Kc6 {[%emt 0:00:31]} 49. Kb4 {[%emt 0:00:02]} Kc7 {[%emt 0:00:02]} 50. Kb5 {[%emt 0:00:02]} f4 {[%emt 0:00:19]} 51. f3 {[%emt 0:00:02]} Kc8 {[%emt 0:00:10]} 52. c6 {[%emt 0:00:07] Weighted Error Value: White=0.02 (flawless) /Black=0.40} 1-0

[Event "FIDE WTC-KO 202"]
[Site "Jerusalem"]
[Date "2022.11.24"]
[Round "5.1"]
[White "Narayanan, S.L."]
[Black "Vokhidov, Shamsiddin"]
[Result "1-0"]
[ECO "D38"]
[WhiteElo "2588"]
[BlackElo "2471"]
[Annotator "TA"]
[PlyCount "87"]
[EventDate "2022.11.20"]
[EventType "team-tourn"]
[EventCountry "ISR"]
[SourceTitle "playchess.com"]
[Source "ChessBase"]
[SourceQuality "1"]
[TimeControl "2700+10"]

{[%evp 12,87,14,23,10,10,10,7,9,9,19,12,12,14,12,7,10,12,8,11,23,0,13,6,9,0,27,36,33,0,0,0,0,0,0,0,0,0,0,0,0,0,0,0,0,0,0,0,0,0,0,0,177,14,38,0,0,0,0,0,75,70,80,87,82,22,150,139,531,520,976,854,961,551,2158,2027,1857,1650]} 1. d4 {[%emt 0:00:03]} Nf6 {[%emt 0:00:02]} 2. c4 {[%emt 0:00:02]} e6 {[%emt 0:00:02]} 3. Nf3 {[%emt 0:00:02]} d5 {[%emt 0:00:01]} 4. Nc3 {[%emt 0:00:02]} Bb4 {[%emt 0:00:02]} 5. cxd5 {[%emt 0:00:02]} exd5 {[%emt 0:00:01]} 6. Bg5 {[%emt 0:00:02]} h6 {[%emt 0:00:02]} 7. Bh4 {[%emt 0:00:02]} O-O {[%emt 0:00:02] D38: Queen's Gambit Declined: Ragozin Defence (4 Nf3 Bb4).} 8. e3 {[%emt 0:00:01]} Bf5 {[%emt 0:00:02]} 9. Qb3 {[%emt 0:00:02]} Bxc3+ {[%emt 0:00:04] The position is equal.} 10. Qxc3 {[%emt 0:00:02]} c6 {[%emt 0:09:27]} 11. Nd2 {[%emt 0:01:33][%cal Bf3d2,Bd2f1,Bf1g3][%mdl 32]} Nbd7 {[%emt 0:00:13]} 12. Be2 {[%emt 0:00:14]} Ne4 {[%emt 0:04:16]} 13. Bxd8 {[%emt 0:06:52]} Nxc3 {[%emt 0:00:01]} 14. bxc3 {[%emt 0:00:02]} Rfxd8 {[%emt 0:00:17]} 15. a4 {[%emt 0:00:01][%cal Ba2a4,Ba4a5][%mdl 32]} c5 {[%emt 0:00:39]} 16. Nf1 {[%emt 0:00:02]} (16. g4 $5 {[%cal Rg4f5]} Bg6 17. f4 $11) 16... Rac8 {[%emt 0:00:50]} 17. Ng3 {[%emt 0:00:30]} Bg6 {[%emt 0:02:44]} 18. Kd2 {[%emt 0:00:03]} cxd4 {[%emt 0:03:43]} 19. exd4 {[%emt 0:00:04] [#]} Nb6 $146 {[%emt 0:00:04]} ({Predecessor:} 19... Nf6 20. Bf3 Rc7 21. a5 Kf8 22. h4 Ne8 23. h5 Bh7 24. Nf1 Rdc8 25. Rc1 Nd6 {1-0 (55) David,A (2424)-Gavrilescu,D (2451) Bucharest 2019}) 20. a5 {[%emt 0:00:29]} Nc4+ {[%emt 0:00:12]} 21. Bxc4 {[%emt 0:00:03]} dxc4 {[%emt 0:02:17]} 22. f3 {[%emt 0:02:14]} Rd5 {[%emt 0:10:16]} 23. Ne4 {[%emt 0:00:55] Against Rcc5} f5 {[%emt 0:00:32]} 24. Ng3 {[%emt 0:00:26]} f4 {[%emt 0:00:29]} 25. Ne4 {[%emt 0:00:19]} Rc6 {[%emt 0:00:45]} 26. Rhe1 {[%emt 0:09:23]} Rh5 {[%emt 0:00:04]} 27. h3 {[%emt 0:02:39]} Bxe4 {[%emt 0:00:39]} 28. fxe4 $11 {[%emt 0:00:03][%mdl 4096] Endgame KRR-KRR} Rg6 {[%emt 0:00:11]} 29. Re2 {[%emt 0:01:18] Threatens to win with e5.} Rhg5 {[%emt 0:00:05]} 30. e5 {[%emt 0:02:03]} Rxg2 {[%emt 0:00:03] aiming for ...R6g3.} 31. Rf1 {[%emt 0:00:01]} Kf7 $2 {[%emt 0:04:19] [#]} (31... R6g3 $11 {and Black is okay.} 32. Rxf4 Rd3+ 33. Ke1 Rg1+ 34. Kf2 Rh1) 32. Rxf4+ $2 {[%emt 0:00:02]} (32. d5 $1 $18) 32... Ke6 {[%emt 0:00:18]} 33. Rf8 {[%emt 0:01:15] Hoping for Re8+.} Rxe2+ {[%emt 0:00:28]} 34. Kxe2 {[%emt 0:00:01] And now Re8+ would win. KR-KR} Rg3 {[%emt 0:00:02]} 35. Re8+ {[%emt 0:00:48]} Kd7 {[%emt 0:00:30]} (35... Kd5 $11 {keeps the balance.}) 36. Rb8 $16 {[%emt 0:00:15]} Kc7 {[%emt 0:01:23]} 37. Rg8 {[%emt 0:01:13]} Kd7 {[%emt 0:01:33]} 38. h4 {[%emt 0:00:16]} ({Better is} 38. Kd2 $16) 38... Ke6 {[%emt 0:01:47]} (38... Rxc3 $11 {remains equal.} 39. Rxg7+ Ke6) 39. Re8+ {[%emt 0:00:17]} Kf5 $2 {[%emt 0:01:36][%mdl 8192] [#] This costs Black the game.} (39... Kd5 $16 {is tougher.}) 40. d5 $1 $18 {[%emt 0:00:55] Strongly threatening e6. White is clearly winning.} Rxc3 {[%emt 0:01:23]} (40... Rd3 $142 41. d6 g5) 41. e6 {[%emt 0:00:02] White wants to mate with e7.} Ke5 {[%emt 0:00:18]} 42. Rd8 {[%emt 0:00:11]} Kf6 {[%emt 0:00:16] Prevents e7.} 43. Rf8+ {[%emt 0:00:02]} Ke7 {[%emt 0:00:10]} 44. Rf7+ {[%emt 0:00:03][%mdl 64] Skewer, Double Attack.   Weighted Error Value: White=0.30/Black=0.38} 1-0

[Event "FIDE WTC-KO 202"]
[Site "Jerusalem"]
[Date "2022.11.24"]
[Round "5.1"]
[White "Sindarov, Javokhir"]
[Black "Nihal, Sarin"]
[Result "1-0"]
[ECO "C50"]
[WhiteElo "2554"]
[BlackElo "2616"]
[Annotator "TA"]
[PlyCount "103"]
[EventDate "2022.11.20"]
[EventType "team-tourn"]
[EventCountry "ISR"]
[SourceTitle "playchess.com"]
[Source "ChessBase"]
[SourceQuality "1"]
[TimeControl "2700+10"]

{[%evp 10,103,25,24,27,12,17,8,14,8,20,22,23,17,21,22,22,25,18,13,26,24,29,24,24,12,32,12,47,44,41,43,54,13,48,51,57,54,69,66,78,67,73,75,74,0,69,45,67,55,103,105,100,88,129,112,128,138,129,114,108,103,116,115,112,110,132,121,121,121,123,124,139,133,129,91,87,55,97,71,60,0,290,278,302,248,313,389,668,397,337,333,459,429,29985,29986]} 1. e4 {[%emt 0:00:02]} e5 {[%emt 0:00:05]} 2. Nf3 {[%emt 0:00:01]} Nc6 {[%emt 0:00:05]} 3. Bc4 {[%emt 0:00:02]} Bc5 {[%emt 0:00:02]} 4. Nc3 {[%emt 0:00:03]} Nf6 {[%emt 0:00:06]} 5. d3 {[%emt 0:00:01]} d6 {[%emt 0:00:04]} 6. Na4 {[%emt 0:00:22]} Bb6 {[%emt 0:00:05] C50: Hungarian Defence and Giuoco Pianissimo.} 7. a3 {[%emt 0:00:15]} h6 {[%emt 0:00:09]} 8. h3 {[%emt 0:00:15]} O-O {[%emt 0:00:24] The position is equal.} 9. O-O {[%emt 0:00:03]} Be6 {[%emt 0:00:10]} 10. Bxe6 $5 {[%emt 0:00:06][%mdl 4] The modern move. Exploring less charted territory.} fxe6 {[%emt 0:00:05]} 11. b4 {[%emt 0:00:06]} Qe8 {[%emt 0:00:49]} 12. c3 {[%emt 0:00:59] [#]} Ne7 $146 {[%emt 0:05:57]} ({Predecessor:} 12... Nh5 13. Nxb6 axb6 14. Be3 Nf4 15. Kh2 Qh5 16. Ng1 Qxd1 17. Rfxd1 Ra4 18. Bc1 Nh5 {0-1 (87) Tari,A (2654)-Anand,V (2751) Stavanger 2022}) 13. Re1 {[%emt 0:02:57]} Ng6 {[%emt 0:01:22]} 14. Ra2 {[%emt 0:01:53]} Rd8 {[%emt 0:05:15]} 15. Nxb6 {[%emt 0:14:40]} axb6 {[%emt 0:00:02]} 16. a4 {[%emt 0:00:00]} Qf7 {[%emt 0:08:21]} 17. Nh2 {[%emt 0:10:54]} Kh7 {[%emt 0:05:48]} (17... d5 $5 {[%cal Rd5e4]}) 18. g3 {[%emt 0:00:58]} Qd7 {[%emt 0:01:46]} (18... d5 {with more complications.} 19. Qe2 c5 20. Ng4 Nxg4 21. hxg4 Qf3) 19. c4 {[%emt 0:06:57]} d5 {[%emt 0:01:25]} 20. Rd2 {[%emt 0:00:05]} Rf7 {[%emt 0:04:13]} 21. Qc2 {[%emt 0:01:36]} c5 {[%emt 0:02:30]} 22. b5 $1 {[%emt 0:00:21]} Qd6 {[%emt 0:03:29]} 23. Kg2 {[%emt 0:00:28]} Rdf8 {[%emt 0:02:30]} 24. Qd1 {[%emt 0:00:37]} Qd7 {[%emt 0:00:52]} 25. Rf1 {[%emt 0:00:47]} (25. Qe2 {looks sharper.} Qd6 26. Ra2 Ng8 27. Rf1) 25... Rd8 {[%emt 0:00:18]} 26. Qe2 {[%emt 0:02:07]} Ra8 {[%emt 0:00:25]} 27. Qd1 {[%emt 0:00:11]} Rd8 $1 {[%emt 0:00:01]} (27... dxe4 28. dxe4 Qe8 29. Qc2 $16) 28. Qc2 {[%emt 0:00:16]} Qe8 {[%emt 0:00:16]} 29. Re2 {[%emt 0:00:11]} dxe4 {[%emt 0:01:28]} (29... Qf8 $14) 30. dxe4 $16 {[%emt 0:00:01]} Rfd7 {[%emt 0:00:00]} 31. Re3 {[%emt 0:00:22]} Nh5 {[%emt 0:00:35]} 32. Kg1 {[%emt 0:00:30]} Qf7 {[%emt 0:00:34]} 33. Nf3 {[%emt 0:00:12]} Kg8 {[%emt 0:01:12]} 34. Kh2 {[%emt 0:00:14]} Nf6 {[%emt 0:00:06][%cal Bh5f6,Bf6h7,Bh7g5][%mdl 32]} 35. Bb2 {[%emt 0:00:14]} Qf8 {[%emt 0:00:17]} 36. Bc3 {[%emt 0:00:28]} (36. Nxe5 Nxe5 37. Bxe5 Rd2 $15) 36... Nh7 {[%emt 0:00:01]} 37. Qe2 {[%emt 0:00:14]} (37. Nxe5 Nxe5 38. Bxe5 Rd2 $11) (37. a5 {simplifies} bxa5 38. Bxa5 Ra8 39. Bc3) 37... Qf6 {[%emt 0:00:05]} 38. Kg2 {[%emt 0:00:45]} Ng5 {[%emt 0:00:20]} 39. Nh2 {[%emt 0:00:02][%cal Of2f4] And now f4! would win.} Nf7 {[%emt 0:00:11]} 40. h4 {[%emt 0:00:20][%cal Bh3h4,Bh4h5][%mdl 32]} Nf8 {[%emt 0:00:14]} 41. Ng4 {[%emt 0:00:14]} Qg6 {[%emt 0:00:03]} 42. h5 {[%emt 0:00:13]} (42. Bxe5 $2 h5 43. Bc3 hxg4 $19) 42... Qg5 {[%emt 0:00:06]} 43. f4 {[%emt 0:00:02]} Qe7 {[%emt 0:00:16]} (43... exf4 $2 44. gxf4 Qe7 45. Rg3 $18) 44. f5 $36 {[%emt 0:00:02][%mdl 2048] f6 is the strong threat. White is in control. White is much more active.} ({Don't play} 44. Nxe5 $6 Nxe5 45. fxe5 (45. Bxe5 $2 Rd2 $19) 45... Nh7 $11) (44. Bxe5 $2 Rd2 45. Rf2 Rxe2 $19) (44. fxe5 Ra8 $11) 44... Nh7 {[%emt 0:00:06] Prevents f6.} 45. f6 {[%emt 0:00:15]} (45. Nxe5 $2 {loses.} Nxe5 46. Kg1 (46. Bxe5 $2 Rd2 $19) 46... Qd6 $19) (45. Rf2 $14) 45... Nxf6 $2 {[%emt 0:00:18][%mdl 8192]} (45... gxf6 $11 {and Black has nothing to worry.} 46. Ref3 Kg7) 46. Nxf6+ $18 {[%emt 0:00:03]} gxf6 {[%emt 0:00:01] [#]} 47. Ref3 $1 {[%emt 0:00:02]} Ng5 {[%emt 0:00:11]} 48. Rxf6 {[%emt 0:00:03]} Rd3 $2 {[%emt 0:00:01]} (48... Kh7 49. Qg4 (49. Bxe5 $2 Rd2 $19) 49... Rg8 50. Bxe5 Rd2+ 51. Kh1 Qd7) 49. Qe1 {[%emt 0:00:59]} (49. Bxe5 $2 {too greedy.} Rd2 $19) 49... Kh7 {[%emt 0:00:24]} 50. Bxe5 {[%emt 0:00:21]} Rg8 {[%emt 0:00:02]} 51. Qe2 {[%emt 0:00:15]} Qd7 {[%emt 0:00:11] [#]} (51... Rgd8 $18) 52. Qxd3 $3 {[%emt 0:00:09][%mdl 512] Weighted Error Value: White=0.18 (very precise) /Black=0.43} 1-0